bitfinex/quotes_ETHUSD_20250123
["timestamp","ask_amount","ask_price","bid_price","bid_amount"]
[1737663884294,0.55,3274.6,3272.2,2.97237725]
[1737663884532,3.05503,3273.3,3272.3,3.05587]
[1737663884829,3.05492,3273.4,3272.1,3.05612]
[1737663885033,3.05584,3272.5,3271.1,1.3484]
[1737663885251,3.0548,3273.6,3270.4,0.56904318]
[1737663885252,1.3436,3272.2,3270.5,1.3484]
[1737663885405,3.0566,3271.6,3270.5,1.3484]
[1737663885591,3.05641,3271.9,3270.5,1.3484]
[1737663885791,3.05595,3272.4,3271.3,3.0568]
[1737663885993,1.3436,3272.7,3270.3,2.97237725]
[1737663885994,6.11106,3272.8,3271.7,3.05649]
[1737663886186,1.3436,3273.3,3271.4,3.05675]
[1737663886440,3.05511,3273.2,3271.2,3.05698]
[1737663886743,3.0553,3273.0,3272.1,3.05608]
[1737663886945,1.3436,3274.2,3271.6,1.3484]
[1737663887243,3.05515,3273.2,3272.2,3.05604]
[1737663887458,1.3436,3274.2,3273.1,3.05517]
[1737663887587,1.3436,3274.2,3272.1,2.97237725]
[1737663887588,1.3436,3275.5,3272.8,1.3484]
[1737663887786,3.05337,3275.1,3272.8,4.40387]
[1737663888000,1.8436,3275.5,3272.8,1.3484]
[1737663888206,3.05445,3274.0,3272.8,4.40383]
[1737663888405,3.05476,3273.6,3272.8,1.3484]
[1737663888729,3.05382,3274.6,3273.4,3.05484]
[1737663889087,3.05352,3274.9,3273.8,3.05454]
[1737663889287,3.05451,3273.9,3272.8,0.93173333]
[1737663889622,3.05389,3274.6,3272.8,0.93173333]
[1737663889831,3.05468,3273.7,3272.8,3.98720333]
[1737663890008,4.49975,3276.2,3273.6,2.97237725]
[1737663890337,0.1675559,3276.7,3274.6,3.05376]
[1737663890547,0.1675559,3276.7,3274.7,3.0537]
[1737663890548,3.2194959,3276.7,3274.7,3.0537]
[1737663890749,3.05276,3275.8,3274.0,35.0]
[1737663890887,1.4474,3276.3,3273.0,2.97237725]
[1737663891089,3.05362,3274.8,3273.5,3.05478]
[1737663891336,3.05315,3275.3,3274.3,3.05401]
[1737663891541,3.05315,3275.3,3274.0,3.05434]
[1737663891723,3.05298,3275.5,3274.5,3.05384]
[1737663891891,3.05275,3275.8,3274.7,3.05363]
[1737663892092,1.4474,3276.3,3274.1,2.96604273]
[1737663892441,1.4474,3276.3,3273.8,1.3295]
[1737663892692,0.1675559,3276.7,3275.5,1.4335]
[1737663892693,3.05254,3276.0,3275.5,1.4335]
[1737663892846,3.05229,3276.3,3275.5,1.4335]
[1737663893045,0.1675559,3276.7,3275.5,1.4335]
[1737663893289,3.05248,3276.1,3275.5,1.4335]
[1737663893453,3.05242,3276.1,3275.5,1.4335]
[1737663893780,3.05242,3276.1,3273.4,3.05485]
[1737663893781,3.05259,3275.9,3274.8,1.4335]
[1737663893991,3.05259,3275.9,3275.1,3.05331]
[1737663894156,1.4476,3276.0,3274.3,2.38138973]
[1737663894358,3.05284,3275.7,3274.2,3.81488973]
[1737663894584,1.6151559,3276.7,3274.8,2.38138973]
[1737663894739,0.1675559,3276.7,3275.4,3.05298]
[1737663894940,3.05216,3276.4,3275.5,3.05288]
[1737663895276,3.05194,3276.6,3275.0,4.4869]
[1737663895439,3.2194659,3276.7,3275.0,1.4335]
[1737663895794,3.05244,3276.1,3275.2,3.05319]
[1737663896093,2.04916116,3276.6,3274.6,3.0538]
[1737663896094,3.05271,3275.8,3274.6,3.0538]
[1737663896388,3.05222,3276.3,3274.8,2.38138973]
[1737663896589,0.1675559,3276.7,3275.6,1.3709]
[1737663896944,0.1675559,3276.7,3275.6,4.42377]
[1737663897144,3.2194059,3276.7,3275.9,3.05257]
[1737663897377,3.05198,3276.6,3275.8,3.05268]
[1737663897583,3.05195,3276.6,3275.8,3.05261]
[1737663897752,6.10474,3276.2,3275.3,3.0531]
[1737663897958,3.05196,3276.6,3275.8,3.05267]
[1737663898159,0.1675559,3276.7,3275.8,3.05268]
[1737663898362,0.1675559,3276.7,3274.9,1.4121]
[1737663898363,0.011,3288.0,3277.2,2.249995]
[1737663898569,3.04599,3283.0,3280.3,3.04844]
[1737663898876,0.96409934,3283.1,3279.9,0.431]
[1737663898877,0.46833033,3285.3,3282.7,0.431]
[1737663899077,3.04443,3284.7,3282.7,0.431]
[1737663899244,3.04556,3283.5,3282.7,0.431]
[1737663899438,3.04539,3283.7,3282.7,0.431]
[1737663899439,3.04547,3283.6,3282.7,0.431]
[1737663899677,3.04547,3283.6,3282.4,3.04654]
[1737663899678,2.44655123,3285.1,3282.4,3.04654]
[1737663899844,3.04585,3283.2,3282.1,3.0468]
[1737663900045,3.04575,3283.3,3282.4,0.5]
[1737663900240,0.21784305,3284.1,3283.4,0.5]
[1737663900495,0.21784305,3284.1,3283.2,0.5]
[1737663900795,0.21784305,3284.1,3282.9,1.4121]
[1737663900796,3.04562,3283.4,3282.9,1.4121]
[1737663900942,0.21784305,3284.1,3283.0,0.5]
[1737663901293,3.04365,3285.6,3284.6,0.5]
[1737663901588,3.04415,3285.0,3284.4,0.5]
[1737663901787,3.04415,3285.0,3283.9,4.45719]
[1737663901788,3.04353,3285.7,3284.6,0.5]
[1737663901988,1.3951,3286.7,3285.1,0.5]
[1737663902209,3.04349,3285.7,3284.7,0.5]
[1737663902347,0.61813375,3287.6,3284.5,35.0]
[1737663902348,1.453,3287.8,3285.4,0.5]
[1737663902558,3.04296,3286.3,3285.4,0.5]
[1737663902787,3.04277,3286.5,3285.4,0.5]
[1737663902985,3.04211,3287.2,3285.6,0.5]
[1737663903196,3.04263,3286.7,3286.0,0.5]
[1737663903403,3.04265,3286.6,3285.8,0.5]
[1737663903861,1.453,3287.8,3286.1,0.5]
[1737663904073,3.0421,3287.2,3286.3,0.5]
[1737663904280,3.0421,3287.3,3286.3,0.5]
[1737663904574,3.04218,3287.2,3286.7,0.5]
[1737663904776,3.04156,3287.8,3287.1,0.5]
[1737663904944,1.378,3288.9,3287.3,0.5]
[1737663905160,0.1951301,3289.0,3287.3,0.5]
[1737663905415,3.04174,3287.6,3286.9,0.5]
[1737663905562,3.04159,3287.8,3287.1,0.5]
[1737663905906,3.04159,3287.8,3286.2,1.3559]
[1737663905907,0.1951301,3289.0,3287.2,0.5]
[1737663906207,0.1951301,3289.0,3286.2,1.3559]
[1737663906208,0.4451301,3289.0,3286.7,0.5]
[1737663906367,0.4451301,3289.0,3287.0,0.5]
[1737663906368,0.1951301,3289.0,3287.0,0.5]
[1737663906566,3.04121,3288.2,3287.2,0.5]
[1737663906800,3.04197,3287.4,3286.7,0.5]
[1737663906983,1.4289,3288.4,3286.7,3.0425]
[1737663907180,0.1951301,3289.0,3287.9,3.54143]
[1737663907181,3.2355801,3289.0,3287.9,3.54143]
[1737663907380,3.2355801,3289.0,3287.8,4.40884]
[1737663907381,3.04063,3288.8,3287.8,4.40884]
[1737663907613,0.1951301,3289.0,3288.4,0.5]
[1737663907813,0.1951301,3289.0,3288.8,3.0406]
[1737663908012,0.1951301,3289.0,3288.9,0.5]
[1737663908213,0.1951301,3289.0,3288.9,35.5]
[1737663908547,0.1951301,3289.0,3288.9,0.5]
[1737663908696,3.03907,3290.5,3289.4,3.54]
[1737663909043,1.3877,3291.6,3290.0,0.5]
[1737663909211,1.3877,3291.6,3288.9,1.4483]
[1737663909212,1.3877,3291.6,3289.3,0.5]
[1737663909410,3.03868,3290.9,3289.8,0.5]
[1737663909641,3.03785,3291.8,3289.6,0.5]
[1737663909941,2.94721985,3291.6,3289.4,0.5]
[1737663910141,3.03887,3290.7,3289.1,0.5]
[1737663910298,3.03887,3290.7,3287.6,2.94721985]
[1737663910299,2.94721985,3292.2,3290.0,1.3536]
[1737663910495,1.4388,3292.7,3290.0,1.3536]
[1737663910496,3.03739,3292.3,3290.0,1.8536]
[1737663910742,3.03861,3291.0,3290.0,1.8536]
[1737663910945,3.03843,3291.2,3290.0,1.8536]
[1737663911149,1.4388,3292.7,3290.7,0.5]
[1737663911403,3.03808,3291.6,3290.5,0.5]
[1737663911689,3.03711,3292.6,3290.5,0.5]
[1737663911897,3.03729,3292.4,3290.5,0.5]
[1737663912063,3.03838,3291.3,3290.5,0.5]
[1737663912251,1.4388,3292.7,3291.0,0.5]
[1737663912252,3.03711,3292.6,3291.0,0.5]
[1737663912449,3.03711,3292.6,3290.1,0.249995]
[1737663912450,3.03688,3292.9,3291.4,1.871]
[1737663912666,3.03667,3293.1,3291.8,0.5]
[1737663912864,3.03739,3292.3,3291.8,0.5]
[1737663913165,3.03739,3292.3,3290.7,3.03884]
[1737663913166,3.03794,3291.7,3290.5,1.371]
[1737663913375,3.03813,3291.5,3290.5,1.871]
[1737663913575,3.03656,3293.2,3290.5,1.871]
[1737663913576,1.4388,3293.4,3291.1,0.5]
[1737663913861,1.4388,3293.4,3290.7,0.5]
[1737663913862,3.03702,3292.7,3290.7,0.5]
[1737663914078,3.03602,3293.8,3289.3,2.93783991]
[1737663914079,2.93783991,3294.1,3291.4,0.5]
[1737663914301,3.03702,3292.7,3291.6,0.5]
[1737663914487,3.03677,3293.0,3292.3,0.5]
[1737663914670,3.03674,3293.1,3292.0,0.5]
[1737663914870,3.03673,3293.1,3292.0,0.2]
[1737663915099,3.03676,3293.0,3291.3,0.195]
[1737663915303,3.0374,3292.3,3291.5,0.195]
[1737663915548,3.0374,3292.3,3289.8,3.03966]
[1737663915549,1.4482,3294.4,3292.3,0.195]
[1737663915756,3.03525,3294.7,3292.7,0.195]
[1737663916057,3.03612,3293.7,3292.3,0.195]
[1737663916211,3.03668,3293.1,3292.5,0.195]
[1737663916545,3.03628,3293.5,3293.4,0.195]
[1737663916705,3.03646,3293.3,3293.2,1.5829]
[1737663916907,3.03646,3293.3,3293.2,1.3879]
[1737663917108,3.03665,3293.1,3292.8,0.195]
[1737663917339,3.03794,3291.7,3291.4,1.3879]
[1737663917523,3.03794,3291.7,3289.1,2.93783991]
[1737663917524,3.03868,3290.9,3290.7,1.3879]
[1737663917737,0.60196929,3292.6,3290.7,1.3879]
[1737663917738,3.28662,3293.2,3290.7,0.195]
[1737663917937,1.4705,3293.5,3290.0,1.3879]
[1737663917938,3.03932,3290.3,3290.0,1.3879]
[1737663918237,3.25,3291.7,3289.8,0.195]
[1737663918407,3.03924,3290.3,3289.6,0.195]
[1737663918607,3.03924,3290.3,3289.4,1.3879]
[1737663918608,3.03812,3291.5,3290.4,3.03912]
[1737663918954,1.4705,3291.9,3290.8,0.195]
[1737663918955,3.0384,3291.2,3290.8,0.195]
[1737663919151,1.3717,3292.8,3292.1,0.195]
[1737663919456,1.3717,3292.8,3290.9,1.4347]
[1737663919457,1.6217,3293.6,3291.5,0.195]
[1737663919609,1.3717,3293.6,3292.5,0.195]
[1737663919806,3.03711,3292.6,3292.5,0.195]
[1737663920005,3.03711,3292.6,3292.3,1.4347]
[1737663920006,3.03729,3292.4,3292.3,1.6297]
[1737663920254,3.03656,3293.2,3293.1,0.195]
[1737663920420,3.03656,3293.2,3292.3,1.4347]
[1737663920421,3.03711,3292.6,3292.3,1.6297]
[1737663920620,3.03748,3292.2,3291.9,0.195]
[1737663920819,3.03748,3292.2,3290.5,2.93783991]
[1737663920820,1.6217,3294.0,3292.0,0.195]
[1737663921020,1.3717,3294.0,3292.2,0.195]
[1737663921221,1.3717,3294.0,3291.0,1.4347]
[1737663921222,3.0372,3292.5,3292.4,0.195]
[1737663921420,0.55,3292.4,3291.8,0.195]
[1737663921622,3.03827,3291.4,3291.1,0.195]
[1737663921822,3.0384,3291.2,3291.1,0.195]
[1737663922036,3.03859,3291.0,3290.9,0.195]
[1737663922560,3.03969,3289.8,3289.7,1.4347]
[1737663922772,3.03988,3289.6,3287.6,1.4347]
[1737663923070,3.04137,3288.0,3287.8,35.0]
[1737663923366,1.3717,3289.9,3287.8,35.0]
[1737663923367,3.04082,3288.6,3287.8,35.0]
[1737663923662,3.0402,3289.3,3288.2,1.4347]
[1737663923968,3.03905,3290.5,3288.2,1.4347]
[1737663924136,3.03894,3290.7,3289.0,1.4347]
[1737663924468,3.03781,3291.9,3290.6,3.03894]
[1737663924674,1.3717,3292.9,3291.3,1.4347]
[1737663925019,3.03731,3292.4,3291.7,35.0]
[1737663925224,3.03711,3292.7,3291.3,1.4347]
[1737663925418,1.3717,3292.9,3291.3,1.4347]
[1737663925667,1.6217,3292.9,3290.0,1.4347]
[1737663925865,3.0373,3292.4,3290.4,3.03906]
[1737663926032,1.3717,3292.9,3290.1,1.4347]
[1737663926241,1.3717,3292.9,3290.9,35.0]
[1737663926242,3.03744,3292.3,3290.9,35.0]
[1737663926459,3.0372,3292.5,3290.9,35.0]
[1737663926637,1.3717,3292.9,3290.1,1.4347]
[1737663926843,3.03708,3292.7,3290.1,1.4347]
[1737663927038,1.3717,3292.9,3290.2,35.0]
[1737663927285,3.0371,3292.7,3290.2,35.0]
[1737663927448,3.0371,3292.7,3290.6,3.03895]
[1737663927449,3.0373,3292.4,3290.6,3.03895]
[1737663927786,3.0373,3292.4,3290.1,1.4347]
[1737663927787,3.03749,3292.2,3290.4,3.03913]
[1737663927986,3.0,3292.3,3290.1,1.4347]
[1737663928189,3.03692,3292.8,3290.1,1.4347]
[1737663928190,3.03775,3291.9,3290.1,1.4347]
[1737663928340,3.03848,3291.2,3290.1,1.4347]
[1737663928706,3.03859,3291.0,3290.2,35.0]
[1737663928987,0.55,3290.8,3289.5,1.4347]
[1737663929201,0.25,3291.5,3289.5,1.4347]
[1737663929494,0.55,3289.7,3288.6,35.0]
[1737663929692,1.3717,3291.0,3288.6,35.0]
[1737663929845,0.5,3292.3,3289.1,2.93821277]
[1737663929846,1.3717,3292.3,3289.1,2.93821277]
[1737663930188,1.3717,3292.7,3290.3,4.37291277]
[1737663930486,3.03738,3292.4,3291.0,35.0]
[1737663930687,3.03682,3293.0,3291.1,4.47319]
[1737663930872,0.25,3293.1,3291.1,1.4347]
[1737663931057,1.3717,3292.4,3290.3,1.4347]
[1737663931683,3.03812,3291.5,3290.4,35.0]
[1737663931886,1.3717,3292.4,3290.4,35.0]
[1737663931887,4.3717,3292.4,3290.4,35.0]
[1737663932042,4.3717,3292.4,3289.0,2.93821277]
[1737663932043,4.54617,3293.3,3290.8,2.93821277]
[1737663932243,3.03707,3292.7,3290.7,1.4486]
[1737663932488,3.03674,3293.0,3291.5,35.0]
[1737663932642,3.03693,3292.8,3291.5,35.0]
[1737663932845,3.03656,3293.2,3291.5,35.0]
[1737663933042,0.55,3292.3,3291.5,35.0]
[1737663933286,1.7597,3293.3,3290.7,4.48743]
[1737663933287,0.55,3292.1,3290.7,4.48743]
[1737663933437,0.55,3291.8,3290.7,1.4486]
[1737663933641,3.03781,3291.9,3290.8,35.0]
[1737663933891,1.4922,3292.1,3290.1,1.397]
[1737663934090,1.4922,3292.1,3290.1,4.43641]
[1737663934315,1.4922,3292.1,3290.8,3.03876]
[1737663934505,1.4922,3292.1,3291.3,3.03831]
[1737663934805,3.0372,3292.5,3290.2,38.03931]
[1737663934977,3.03609,3293.7,3291.5,3.03812]
[1737663935175,1.4922,3293.8,3291.5,3.03812]
[1737663935176,1.4922,3293.8,3292.1,3.03748]
[1737663935393,1.4922,3293.8,3292.6,3.0371]
[1737663935589,1.4922,3293.8,3291.5,1.397]
[1737663935590,1.4922,3293.8,3293.1,3.03664]
[1737663935904,1.4931,3294.5,3292.7,36.4957]
[1737663936106,3.2201,3294.8,3293.8,3.036]
[1737663936306,3.2201,3294.8,3293.8,4.5317]
[1737663936528,3.2201,3294.8,3294.2,3.03562]
[1737663936666,3.2201,3294.8,3294.7,3.03517]
[1737663936861,3.2201,3294.8,3293.8,35.0]
[1737663937215,3.2201,3294.8,3293.6,0.6622]
[1737663937508,3.2201,3294.8,3293.6,3.69838]
[1737663937509,3.03531,3294.6,3293.6,3.69838]
[1737663937814,1.4267,3294.7,3292.9,4.46551]
[1737663937969,3.0,3294.4,3292.2,1.4287]
[1737663938166,1.4267,3294.7,3292.3,3.03739]
[1737663938367,5.33895564,3294.7,3292.2,1.4287]
[1737663938693,3.03618,3293.7,3292.5,3.03713]
[1737663939016,3.036,3293.8,3292.6,3.03711]
[1737663939167,3.03678,3293.0,3291.7,3.03794]
[1737663939366,3.036,3293.8,3291.6,1.516]
[1737663939367,0.55,3292.8,3291.6,1.516]
[1737663939711,3.0,3293.7,3290.4,3.03907]
[1737663939712,3.0381,3291.6,3290.4,1.3893]
[1737663939915,3.0381,3291.6,3289.9,3.03955]
[1737663939916,1.48,3292.6,3289.7,1.3893]
[1737663940083,3.03849,3291.2,3290.1,3.03938]
[1737663940421,3.03862,3291.0,3290.1,3.03938]
[1737663940606,4.73,3292.0,3289.0,1.3893]
[1737663940770,4.73,3292.0,3287.1,2.0]
[1737663940771,0.55,3291.0,3287.9,1.3893]
[1737663940971,3.04007,3289.4,3288.4,3.04096]
[1737663941208,3.04007,3289.4,3288.1,3.0412]
[1737663941209,3.04012,3289.4,3288.3,3.04099]
[1737663941407,3.03931,3290.3,3288.0,3.04136]
[1737663941610,3.91225564,3291.0,3287.9,1.3893]
[1737663941771,4.51855,3291.1,3288.4,3.04099]
[1737663941772,3.03897,3290.6,3288.4,3.04099]
[1737663941975,3.03897,3290.6,3289.6,3.0398]
[1737663942170,1.48,3291.1,3288.2,3.91225564]
[1737663942171,3.58859,3291.0,3288.2,3.91225564]
[1737663942371,3.03923,3290.3,3288.1,38.04117]
[1737663942684,3.03906,3290.5,3288.2,3.04117]
[1737663942891,3.03749,3292.2,3289.8,3.03964]
[1737663943077,1.48,3292.1,3291.5,3.03812]
[1737663943271,4.51675,3293.0,3291.6,35.0]
[1737663943521,0.25,3294.5,3291.6,35.0]
[1737663943522,1.48,3294.5,3291.7,1.3893]
[1737663943688,3.0365,3293.3,3292.3,3.0373]
[1737663944018,3.03659,3293.2,3292.1,3.0375]
[1737663944226,3.03645,3293.4,3292.5,35.0]
[1737663944536,1.48,3294.5,3292.5,35.0]
[1737663944710,1.48,3294.5,3292.5,38.03719]
[1737663945025,1.48,3294.5,3292.5,35.0]
[1737663945244,1.48,3294.5,3291.7,1.3893]
[1737663945245,0.0019019,3295.0,3292.7,3.03702]
[1737663945412,0.0019019,3295.0,3292.8,3.0]
[1737663945729,0.0019019,3295.0,3294.5,3.03532]
[1737663945887,0.0019019,3295.0,3293.6,35.0]
[1737663946090,0.0019019,3295.0,3294.2,3.03557]
[1737663946316,3.0368819,3295.0,3294.0,3.03574]
[1737663946626,3.0368819,3295.0,3293.6,35.0]
[1737663946627,3.03536,3294.5,3293.6,3.03616]
[1737663946825,0.3172416,3294.7,3293.9,3.03586]
[1737663947123,0.3172416,3294.7,3292.9,3.0]
[1737663947327,0.3172416,3294.7,3292.7,1.4198]
[1737663947629,1.481,3294.5,3293.1,3.03656]
[1737663947772,3.03567,3294.2,3291.8,1.4198]
[1737663947970,1.481,3294.5,3292.7,3.03694]
[1737663948170,1.481,3294.5,3291.8,1.4198]
[1737663948171,0.55,3293.8,3292.4,3.03722]
[1737663948377,0.55,3293.3,3292.1,3.0375]
[1737663948602,0.55,3293.3,3292.2,3.03745]
[1737663948818,0.55,3293.3,3292.1,3.0375]
[1737663949046,1.481,3294.5,3292.5,3.91225564]
[1737663949352,0.0019019,3295.0,3293.5,3.0362]
[1737663949551,0.55,3294.7,3293.5,3.0362]
[1737663950054,0.55,3294.7,3292.9,3.03677]
[1737663950055,3.03546,3294.4,3292.9,3.03677]
[1737663950363,0.55,3293.8,3292.6,3.03708]
[1737663950541,0.55,3293.8,3291.8,4.45761]
[1737663950542,0.55,3293.7,3291.8,1.4198]
[1737663950741,1.481,3293.8,3292.6,3.0371]
[1737663950961,1.481,3293.8,3293.0,3.03674]
[1737663951114,1.481,3293.8,3291.8,1.4198]
[1737663951310,3.03623,3293.6,3292.4,3.03729]
[1737663951656,1.481,3293.8,3291.3,3.03831]
[1737663951858,3.03659,3293.2,3291.0,1.4524]
[1737663952055,3.58666,3293.1,3291.9,3.03769]
[1737663952267,3.58666,3293.1,3291.6,3.03797]
[1737663952268,0.55,3292.8,3291.6,3.03797]
[1737663952574,0.55,3291.9,3290.1,4.52865]
[1737663952716,1.5299,3291.3,3289.4,1.4893]
[1737663953061,1.5299,3291.3,3288.9,0.31745133]
[1737663953216,3.91225564,3293.0,3289.5,3.91225564]
[1737663953419,1.5299,3292.7,3290.4,1.4893]
[1737663953735,1.5299,3292.7,3291.9,3.03767]
[1737663953947,1.5299,3292.7,3290.9,3.0]
[1737663954259,1.5299,3292.7,3292.2,3.03746]
[1737663954556,1.5299,3292.7,3291.6,3.03797]
[1737663954557,1.4987,3293.9,3291.6,3.0]
[1737663954774,1.4987,3293.9,3292.1,3.03753]
[1737663955055,3.03669,3293.1,3291.9,3.03773]
[1737663955212,1.4987,3293.9,3291.5,3.03804]
[1737663955213,6.622,3293.8,3291.5,3.03804]
[1737663955421,3.03699,3292.8,3291.3,3.03829]
[1737663955616,0.55,3292.1,3290.5,3.03905]
[1737663955929,0.55,3291.9,3290.3,3.03919]
[1737663956116,3.03802,3291.7,3290.5,3.03899]
[1737663956321,3.03784,3291.9,3290.5,3.03899]
[1737663956514,0.55,3291.6,3290.5,3.03899]
[1737663956719,1.4987,3292.0,3290.0,3.03951]
[1737663956930,0.55,3291.8,3289.8,3.03967]
[1737663957131,1.4987,3292.0,3291.0,3.03851]
[1737663957347,4.56065,3293.0,3290.1,3.91225564]
[1737663957549,4.56066,3293.0,3290.5,3.03905]
[1737663957864,4.56066,3293.0,3289.8,3.0]
[1737663957865,1.5239,3293.0,3290.8,3.03877]
[1737663958159,1.4402,3294.0,3292.9,3.03682]
[1737663958341,1.4402,3294.0,3291.4,3.03822]
[1737663958342,1.4402,3294.0,3292.8,3.03691]
[1737663958725,1.4402,3294.0,3292.3,3.03732]
[1737663958726,3.03636,3293.5,3292.3,3.03732]
[1737663958916,3.03686,3292.9,3291.8,3.03783]
[1737663959115,1.4402,3292.8,3291.4,3.03813]
[1737663959343,0.55,3292.6,3291.4,3.03813]
[1737663959558,1.4402,3292.8,3291.2,3.03839]
[1737663959559,0.55,3292.4,3291.2,3.03839]
[1737663959715,0.55,3292.3,3291.2,3.03835]
[1737663959916,0.55,3292.7,3290.2,1.4301]
[1737663960179,3.03715,3292.6,3291.5,3.03808]
[1737663960460,1.4479,3293.7,3291.6,3.03802]
[1737663960760,0.3,3293.9,3291.9,3.91225564]
[1737663960958,0.3,3293.9,3293.4,3.03637]
[1737663961169,0.3,3293.9,3292.0,4.5037]
[1737663961310,0.3,3293.9,3293.3,3.03642]
[1737663961518,0.3,3293.9,3293.6,3.03617]
[1737663961712,0.3,3293.9,3293.3,3.0364]
[1737663961961,3.036,3293.8,3291.6,3.03803]
[1737663962160,1.4479,3293.8,3292.5,3.03711]
[1737663962316,3.03665,3293.1,3291.3,1.5037]
[1737663962517,1.4479,3293.8,3291.3,1.5037]
[1737663962518,3.03714,3292.6,3291.7,3.03791]
[1737663962858,1.4479,3293.8,3292.0,3.03759]
[1737663963064,0.55,3293.1,3291.3,1.5037]
[1737663963361,3.03628,3293.5,3291.4,3.03822]
[1737663963560,3.03682,3293.0,3291.4,3.03822]
[1737663963772,3.03675,3293.0,3291.6,3.03802]
[1737663963970,3.03671,3293.1,3292.0,3.03766]
[1737663964181,4.48395,3293.8,3291.3,1.5037]
[1737663964182,1.4479,3293.8,3291.3,1.5037]
[1737663964379,3.03601,3293.8,3291.3,4.54195]
[1737663964680,1.452,3294.0,3292.0,1.5107]
[1737663964889,3.0363,3293.5,3292.7,3.037]
[1737663965194,1.452,3294.0,3292.8,3.0369]
[1737663965372,1.452,3294.0,3292.0,1.5107]
[1737663965373,1.452,3294.0,3293.0,3.03667]
[1737663965678,1.452,3294.0,3292.0,1.5107]
[1737663965845,1.452,3294.7,3293.8,3.036]
[1737663966046,3.03574,3294.1,3293.3,3.03643]
[1737663966247,3.03589,3294.0,3293.1,3.0366]
[1737663966579,3.03718,3292.6,3291.5,3.03812]
[1737663966750,3.03718,3292.6,3289.6,0.249995]
[1737663966751,1.452,3293.8,3292.1,3.91225564]
[1737663966929,1.435,3294.4,3292.7,3.91225564]
[1737663967130,1.5055019,3295.0,3293.8,3.036]
[1737663967430,1e-05,3293.9,3293.8,6.036]
[1737663967807,0.0019019,3295.0,3294.7,3.03517]
[1737663968014,0.0019019,3295.0,3294.7,10.51252564]
[1737663968165,0.005,3295.8,3294.6,3.91225564]
[1737663968363,0.005,3295.8,3295.3,3.03457]
[1737663968622,0.005,3295.8,3295.7,3.03425]
[1737663969120,3.0329,3297.2,3296.1,3.03388]
[1737663969280,1.4137,3297.6,3295.7,1.4928]
[1737663969460,3.03297,3297.1,3295.7,4.52704]
[1737663969659,3.03307,3297.0,3295.7,1.4928]
[1737663969862,4.4137,3297.6,3294.7,1.4928]
[1737663970097,3.03342,3296.7,3294.7,1.4928]
[1737663970411,3.0326,3297.5,3295.0,3.03483]
[1737663970612,3.03364,3296.4,3294.7,1.4928]
[1737663970811,1.4137,3296.5,3294.7,4.52794]
[1737663970979,3.03379,3296.2,3294.4,3.03538]
[1737663971184,0.55,3296.4,3293.8,3.03597]
[1737663971378,1.4137,3296.5,3294.0,3.03575]
[1737663971379,3.03472,3295.2,3294.0,3.03575]
[1737663971593,3.0348,3295.1,3294.0,3.03578]
[1737663971804,3.0348,3295.1,3294.0,3.03582]
[1737663971997,1.4137,3295.0,3292.7,1.4928]
[1737663972212,4.44791,3295.8,3293.0,3.0]
[1737663972410,1.4137,3295.8,3294.2,3.0356]
[1737663972617,3.03425,3295.7,3293.6,3.03618]
[1737663972820,1.3869,3296.6,3295.5,3.03443]
[1737663973114,3.03371,3296.3,3295.3,3.0346]
[1737663973419,4.42034,3296.6,3295.4,35.0]
[1737663973716,3.03352,3296.5,3294.3,3.03554]
[1737663974021,3.03501,3294.9,3294.2,1.5222]
[1737663974168,0.55,3295.5,3294.1,3.03568]
[1737663974370,3.03453,3295.4,3294.2,3.03557]
[1737663974569,3.91225564,3297.5,3293.5,5.43445564]
[1737663974824,3.91225564,3297.5,3294.7,3.03511]
[1737663974825,3.03282,3297.3,3294.7,3.03511]
[1737663974972,3.03409,3295.9,3294.7,3.03515]
[1737663975313,0.25,3297.7,3293.5,8.43445564]
[1737663975314,3.03466,3295.3,3293.5,1.5222]
[1737663975474,3.0347,3295.3,3294.2,3.0356]
[1737663975813,3.0,3296.4,3293.5,4.55843]
[1737663975814,3.0,3296.2,3293.5,1.5222]
[1737663976019,3.03529,3294.6,3293.5,1.5222]
[1737663976219,3.03471,3295.3,3293.5,1.5222]
[1737663976369,3.03455,3295.4,3293.9,3.0359]
[1737663976570,3.03342,3296.6,3293.7,1.5222]
[1737663976923,3.03522,3294.7,3293.7,1.5222]
[1737663977074,3.03463,3295.3,3293.7,1.5222]
[1737663977270,3.03515,3294.8,3293.0,1.5222]
[1737663977613,3.03559,3294.3,3293.0,4.55889]
[1737663977781,3.03458,3295.4,3293.8,3.036]
[1737663977984,3.03504,3294.9,3293.5,3.03619]
[1737663978181,3.03558,3294.3,3293.0,1.5222]
[1737663978384,6.03444,3295.5,3293.0,1.5222]
[1737663978385,3.03563,3294.2,3293.0,1.5222]
[1737663978719,3.0357,3294.2,3293.1,35.0]
[1737663979021,0.0995083,3294.5,3293.4,3.03633]
[1737663979221,0.0995083,3294.5,3293.6,3.03615]
[1737663979426,0.0995083,3294.5,3294.4,3.03545]
[1737663979607,0.0995083,3294.5,3294.4,35.0]
[1737663980098,0.0995083,3294.5,3293.0,1.5222]
[1737663980282,3.03573,3294.1,3293.1,1.214931]